bitfinex/quotes_ETHUSD_20250411
["timestamp","ask_amount","ask_price","bid_price","bid_amount"]
[1744390908245,6.07,1563.9,1563.7,12.79001]
[1744390908443,6.07,1563.9,1563.7,6.39496]
[1744390909533,6.07,1563.9,1563.8,6.39467]
[1744390909771,6.07,1563.9,1563.8,7.673633]
[1744390910134,6.07,1563.9,1563.8,6.39467]
[1744390910747,6.07,1564.2,1564.1,6.39345]
[1744390911041,6.8668,1564.4,1564.3,6.39263]
[1744390911269,0.7901,1564.6,1564.3,6.39263]
[1744390911472,6.62,1564.7,1564.6,6.3914]
[1744390912446,0.55,1564.7,1564.5,13.55774]
[1744390912782,0.55,1564.7,1564.5,6.39174]
[1744390913181,0.55,1564.7,1564.6,6.3914]
[1744390914954,0.55,1564.7,1564.6,7.1671]
[1744390915286,0.55,1564.7,1564.6,6.3914]
[1744390915584,0.55,1564.7,1564.6,7.669701]
[1744390915888,0.55,1564.7,1564.6,8.492001]
[1744390920619,0.55,1564.7,1564.6,6.3914]
[1744390922932,0.55,1564.7,1564.4,0.8262]
[1744390923119,0.7801,1564.6,1564.4,12.78417]
[1744390923290,0.55,1564.7,1564.2,0.8249]
[1744390923291,0.55,1564.7,1564.3,6.39263]
[1744390923492,0.55,1564.7,1564.6,6.3914]
[1744390924535,0.55,1564.7,1564.5,6.39162]
[1744390924736,0.55,1564.7,1564.6,6.3914]
[1744390924935,0.55,1564.7,1564.6,7.1919]
[1744390926301,1e-05,1564.7,1564.6,14.53646828]
[1744390926505,1e-05,1564.7,1564.6,17.20453871]
[1744390927020,6.07,1565.1,1565.0,7.16517]
[1744390927228,0.05,1565.4,1565.2,6.38895]
[1744390927229,6.07,1565.3,1565.2,6.38895]
[1744390927635,0.05,1565.4,1565.2,12.84178448]
[1744390927818,0.05,1565.4,1565.3,7.19145]
[1744390928136,0.05,1565.4,1565.3,9.62284024]
[1744390929240,0.05,1565.4,1565.3,9.68671172]
[1744390929541,0.05,1565.4,1565.3,9.62284024]
[1744390929708,0.05,1565.4,1565.3,9.68671174]
[1744390929911,0.05,1565.4,1565.3,9.62284024]
[1744390930529,0.05,1565.4,1565.3,6.38855]
[1744390931819,0.05,1565.4,1565.3,7.20895]
[1744390934469,0.05,1565.4,1565.3,7.27282683]
[1744390934673,0.24,1565.4,1565.3,7.20895]
[1744390935972,0.24,1565.4,1565.3,7.27282281]
[1744390936171,0.24,1565.4,1565.3,9.64205107]
[1744390936870,0.24,1565.4,1565.3,7.20895]
[1744390937873,0.24,1565.4,1565.3,6.38855]
[1744390938569,0.24,1565.4,1565.2,6.38876]
[1744390939360,0.24,1565.4,1565.1,13.31522]
[1744390939604,6.62816,1565.4,1565.1,12.77845]
[1744390939895,0.24,1565.4,1565.1,12.77847]
[1744390940094,0.24,1565.4,1565.2,6.38889]
[1744390940397,12.45865,1565.3,1565.0,6.38964]
[1744390940899,6.07,1565.3,1564.9,0.821]
[1744390941072,6.07,1565.3,1565.2,6.38895]
[1744390942363,6.07,1565.3,1565.2,7.22105]
[1744390945163,6.07,1565.3,1565.2,11.50171788]
[1744390945363,6.07,1565.3,1565.2,13.92971667]
[1744390945862,6.07,1565.3,1565.2,9.64904879]
[1744390946365,0.24,1565.4,1565.3,6.38855]
[1744390948614,0.24,1565.4,1565.3,7.18755]
[1744390948786,0.24,1565.4,1565.3,8.02255682]
[1744390948987,0.24,1565.4,1565.3,11.45582917]
[1744390949984,0.24,1565.4,1565.3,14.45582917]
[1744390950174,0.24,1565.4,1565.3,13.62082235]
[1744390951310,6.07,1565.8,1565.7,6.38691]
[1744390951509,6.07,1565.9,1565.8,6.38651]
[1744390953216,6.07,1565.9,1565.7,12.77365]
[1744390953418,6.07,1565.9,1565.7,6.38674]
[1744390953914,6.8261,1565.9,1565.7,6.38674]
[1744390954707,6.38654,1565.8,1565.5,12.77521]
[1744390954914,21.558624,1565.9,1565.5,12.77521]
[1744390955084,6.07,1565.8,1565.5,12.77521]
[1744390955283,12.45651,1565.8,1565.5,6.3876]
[1744390955522,12.45651,1565.8,1565.5,12.7752]
[1744390955718,12.45651,1565.8,1565.6,6.38704]
[1744390955719,6.07,1565.8,1565.6,6.38704]
[1744390955894,6.07,1565.8,1565.7,6.38691]
[1744390956490,6.07,1565.8,1565.6,6.38704]
[1744390956695,6.07,1565.8,1565.5,6.38769]
[1744390956915,6.07,1565.8,1565.5,12.77524]
[1744390957081,13.77776,1565.8,1565.5,12.77524]
[1744390957284,20.16457,1565.8,1565.5,6.38762]
[1744390957498,13.77776,1565.8,1565.5,6.38762]
[1744390957919,7.39124,1565.8,1565.5,12.77522]
[1744390958130,7.39124,1565.8,1565.6,6.38718]
[1744390958822,7.39124,1565.8,1565.6,12.77439]
[1744390959005,7.39124,1565.8,1565.5,6.38762]
[1744390959222,13.77789,1565.8,1565.5,6.38762]
[1744390959408,7.39124,1565.8,1565.5,6.3876]
[1744390959721,7.39124,1565.8,1565.6,6.38732]
[1744390959909,13.7778,1565.8,1565.5,6.3876]
[1744390960224,0.7819,1565.6,1565.4,6.38785]
[1744390960385,0.7819,1565.6,1565.4,12.77587]
[1744390960580,13.23924,1565.6,1565.3,12.77684]
[1744390960786,6.07,1565.5,1565.3,6.38842]
[1744390961885,0.7899,1565.3,1564.9,0.8306]
[1744390962125,6.8599,1565.3,1565.1,6.38935]
[1744390962287,6.07,1565.2,1565.0,6.38945]
[1744390962480,6.07,1565.2,1565.0,12.77911]
[1744390962900,6.07,1565.2,1565.0,6.38945]
[1744390963104,6.07,1565.2,1565.0,12.7791]
[1744390964039,6.07,1565.2,1565.1,6.38936]
[1744390966212,6.07,1565.2,1565.0,12.7791]
[1744390966418,6.07,1565.2,1565.1,6.38936]
[1744390966829,6.8599,1565.3,1565.1,6.38936]
[1744390967413,6.8599,1565.3,1565.0,7.14935]
[1744390967414,13.24847,1565.3,1565.0,7.14935]
[1744390967733,15.212137,1565.3,1565.0,12.77909]
[1744390968041,21.600927,1565.3,1565.0,6.38945]
[1744390968246,6.38896,1565.2,1564.9,6.39005]
[1744390968406,8.823567,1565.3,1564.8,5.07812788]
[1744390968613,8.823567,1565.3,1565.2,6.38895]
[1744390968614,6.8599,1565.3,1565.2,6.38895]
[1744390968945,6.8599,1565.3,1565.0,6.38964]
[1744390969129,13.93455,1565.3,1565.0,12.7793]
[1744390969529,6.07,1565.2,1565.0,6.38976]
[1744390969833,12.45896,1565.2,1564.9,6.39002]
[1744390970031,6.07,1565.2,1565.0,6.38938]
[1744390970243,0.7899,1565.3,1565.0,6.38955]
[1744390970244,6.8599,1565.3,1565.0,6.38955]
[1744390970444,14.573366,1565.3,1565.0,6.38955]
[1744390970607,14.573366,1565.3,1564.9,12.78015]
[1744390970806,6.38908,1565.2,1564.9,12.78015]
[1744390971008,20.962216,1565.3,1565.0,6.38975]
[1744390971351,6.38903,1565.2,1564.9,6.39006]
[1744390971655,20.962126,1565.3,1565.0,6.38976]
[1744390971946,2.0962126,1565.2,1565.0,6.38976]
[1744390972149,8.4852126,1565.2,1564.9,12.78012]
[1744390972353,6.389,1565.2,1564.9,12.78012]
[1744390972502,12.77826,1565.2,1564.9,6.39006]
[1744390972702,12.77809,1565.2,1564.9,6.39006]
[1744390973010,6.389,1565.2,1564.9,6.39006]
[1744390973205,12.77809,1565.2,1564.9,6.39005]
[1744390973424,6.389,1565.2,1564.9,12.78012]
[1744390974729,12.77813,1565.2,1564.9,6.39005]
[1744390975047,6.389,1565.2,1564.9,6.39005]
[1744390975348,6.389,1565.2,1564.9,12.78011]
[1744390975516,6.389,1565.2,1564.9,6.39005]
[1744390975725,6.07,1565.1,1564.9,6.39005]
[1744390976041,6.07,1565.1,1564.8,6.39046]
[1744390976346,7.18388,1565.0,1564.7,6.39087]
[1744390976648,12.4602,1564.9,1564.6,15.51464083]
[1744390976826,6.07,1564.9,1564.7,6.39065]
[1744390977144,12.46031,1564.9,1564.7,6.39097]
[1744390977350,6.07,1564.9,1564.7,6.39097]
[1744390977650,6.07,1564.9,1564.8,6.39059]
[1744390978346,6.07,1565.0,1564.9,6.39018]
[1744390981451,12.45901,1565.2,1564.9,6.39018]
[1744390981610,6.07,1565.2,1564.9,12.78023]
[1744390981810,6.07,1565.2,1565.0,12.77942]
[1744390982012,6.07,1565.2,1565.1,6.38936]
[1744390983277,6.07,1565.2,1565.0,6.38966]
[1744390983574,6.07,1565.4,1565.3,6.38855]
[1744390984574,6.07,1565.4,1565.3,10.00898652]
[1744390984738,6.07,1565.6,1565.5,6.38773]
[1744390985075,18.84418,1565.7,1565.4,6.38802]
[1744390985259,18.84421,1565.7,1565.4,6.38802]
[1744390985437,12.45704,1565.7,1565.4,6.38802]
[1744390985648,7.16819,1565.6,1565.3,6.38843]
[1744390985861,13.55565,1565.6,1565.3,6.38843]
[1744390986056,13.55565,1565.6,1565.2,7.16788]
[1744390986261,7.16808,1565.6,1565.3,6.38855]
[1744390986482,13.55562,1565.6,1565.3,6.38855]
[1744390986648,15.8043883,1565.6,1565.3,6.38855]
[1744390987186,9.4168483,1565.6,1565.3,6.38855]
[1744390987342,15.8043183,1565.6,1565.3,6.38855]
[1744390987548,9.4168383,1565.6,1565.3,12.77699]
[1744390987849,12.45808,1565.5,1565.2,6.38889]
[1744390988168,20.39483483,1565.5,1565.2,6.38889]
[1744390988368,6.38872,1565.3,1565.0,6.38966]
[1744390988569,12.77756,1565.3,1565.0,6.38966]
[1744390988889,0.8295,1565.1,1564.9,6.39011]
[1744390989098,6.39086,1564.8,1564.4,6.31633047]
[1744390989383,12.461,1564.7,1564.4,19.73195352]
[1744390989680,12.461,1564.7,1564.6,6.3914]
[1744390989681,6.07,1564.7,1564.6,6.3914]
[1744390990350,6.07,1565.0,1564.8,6.39018]
[1744390990590,6.07,1565.0,1564.9,6.39018]
[1744390990752,6.07,1565.0,1564.9,7.668216]
[1744390992198,6.07,1565.0,1564.9,6.39018]
[1744390995121,6.3196,1565.2,1565.1,6.38936]
[1744390995281,6.3196,1565.2,1565.1,10.00979652]
[1744390995911,6.3196,1565.2,1565.1,10.79849652]
[1744390996312,6.3196,1565.2,1565.1,6.38936]
[1744390996511,6.3196,1565.2,1565.1,11.28768952]
[1744390996920,6.3196,1565.2,1565.1,12.04848952]
[1744390999113,0.2496,1565.2,1565.1,12.04848952]
[1744390999328,0.2496,1565.2,1565.1,7.667253]
[1744391000436,0.2496,1565.2,1565.1,11.3515748]
[1744391000616,0.2496,1565.2,1565.1,12.08228952]
[1744391002649,0.2496,1565.2,1565.1,12.14616999]
[1744391002650,1e-05,1565.2,1565.1,12.14616999]
[1744391002936,1e-05,1565.2,1565.1,15.98117096]
[1744391003110,1e-05,1565.2,1565.1,16.78550955]
[1744391003312,6.07,1565.8,1565.7,6.38691]
[1744391003532,6.07,1565.9,1565.7,7.742733]
[1744391003849,6.07,1565.9,1565.7,12.77366]
[1744391004014,6.07,1565.9,1565.7,6.38678]
[1744391004212,12.45615,1565.9,1565.6,12.7744]
[1744391004422,6.07,1565.9,1565.6,12.7744]
[1744391004938,6.07,1565.9,1565.7,6.38687]
[1744391005146,6.07,1565.9,1565.8,6.38651]
[1744391005617,6.07,1565.9,1565.7,6.3868]
[1744391005807,6.07,1565.9,1565.7,12.77361]
[1744391006004,6.07,1565.9,1565.7,6.38679]
[1744391006744,14.422189,1565.9,1565.5,6.38754]
[1744391007040,0.7842,1565.8,1565.6,6.38731]
[1744391007419,0.7842,1565.8,1565.6,12.77452]
[1744391007645,0.7842,1565.8,1565.7,6.38691]
[1744391007807,6.8542,1565.8,1565.7,6.38691]
[1744391008247,6.8542,1565.8,1565.6,10.00762652]
[1744391008445,6.8542,1565.8,1565.6,16.39482652]
[1744391008818,6.8542,1565.8,1565.7,6.38691]
[1744391009910,6.38693,1565.7,1565.4,6.38796]
[1744391010111,12.77414,1565.7,1565.4,6.38796]
[1744391010323,6.8542,1565.8,1565.6,10.00737652]
[1744391010511,6.8542,1565.8,1565.7,6.38691]
[1744391010711,6.07,1565.9,1565.8,6.38651]
[1744391011249,6.07,1565.9,1565.8,11.28426852]
[1744391011454,6.07,1565.9,1565.8,12.05426852]
[1744391011607,6.07,1566.2,1566.1,6.38528]
[1744391011820,6.07,1566.3,1566.2,6.38488]
[1744391012024,6.12,1566.4,1566.2,12.76976]
[1744391012248,6.12,1566.4,1566.3,10.00490652]
[1744391013357,6.12,1566.4,1566.3,6.38447]
[1744391013855,6.1326483,1566.4,1566.3,6.38447]
[1744391015244,0.0626483,1566.4,1566.3,11.43790779]
[1744391015761,0.0626483,1566.4,1566.3,7.16757]
[1744391016059,0.0626483,1566.4,1566.3,6.38447]
[1744391017161,0.0626483,1566.4,1566.3,7.661385]
[1744391018228,0.0626483,1566.4,1566.3,11.93172279]
[1744391018858,0.0626483,1566.4,1566.3,11.99555847]
[1744391019160,0.0626483,1566.4,1566.3,12.68552279]
[1744391019678,0.0626483,1566.4,1566.3,12.74935237]
[1744391019980,0.0626483,1566.4,1566.3,16.58435919]
[1744391020161,0.0626483,1566.4,1566.3,16.87191008]
[1744391020645,0.0626483,1566.4,1566.3,17.34743439]
[1744391021173,8.3e-06,1566.4,1566.3,17.34743439]
[1744391022564,6.07,1567.1,1567.0,6.38162]
[1744391022876,6.07,1567.3,1567.2,6.3808]
[1744391023773,6.07,1567.3,1567.0,6.38148]
[1744391024076,6.07,1567.3,1566.9,6.38201]
[1744391024077,0.7677,1567.2,1566.9,6.38201]
[1744391024264,6.07,1567.3,1567.1,6.38121]
[1744391024463,6.07,1567.3,1567.0,6.38158]
[1744391024760,6.07,1567.3,1567.0,6.38146]
[1744391025277,12.45057,1567.3,1566.9,6.38186]
[1744391025474,6.07,1567.3,1567.0,6.38132]
[1744391025980,6.07,1567.3,1567.0,12.7627]
[1744391026176,6.07,1567.3,1567.1,6.38086]
[1744391026472,6.07,1567.3,1567.2,6.3808]
[1744391028379,6.12,1567.4,1567.2,12.7616]
[1744391028555,6.12,1567.4,1567.3,6.38039]
[1744391030347,6.12,1567.4,1567.2,6.38063]
[1744391030848,6.12,1567.4,1567.3,6.38039]
[1744391031051,6.12,1567.4,1567.3,1.276102]
[1744391031281,6.9295,1567.4,1567.1,0.638086]
[1744391031444,13.30972,1567.4,1567.0,12.76306]
[1744391031644,19.68994,1567.4,1567.0,12.76306]
[1744391031867,13.30972,1567.4,1567.1,6.38121]
[1744391032080,19.68994,1567.4,1567.0,6.3815]
[1744391032256,12.7613,1567.3,1566.9,11.43771779]
[1744391032578,6.38065,1567.3,1567.0,6.38152]
[1744391033283,12.76127,1567.3,1567.0,3.6107797]
[1744391033588,6.9295,1567.4,1567.0,3.6107797]
[1744391033745,6.9295,1567.4,1567.1,6.381]
[1744391033949,6.12,1567.4,1567.2,10.6295397]
[1744391034476,6.12,1567.4,1567.2,4.2488797]
[1744391034679,6.12,1567.4,1567.0,9.9922997]
[1744391034861,12.76111,1567.3,1567.0,9.9922997]
[1744391035077,13.53521,1567.3,1567.0,9.9922997]
[1744391035278,7.15461,1567.3,1567.0,9.9922997]
[1744391035478,0.7741,1567.3,1567.0,16.3737997]
[1744391035796,7.1545,1567.3,1567.0,11.70597967]
[1744391036298,7.1545,1567.3,1566.9,12.76396]
[1744391036590,13.5351,1567.3,1566.9,12.76396]
[1744391036757,6.38111,1567.2,1566.8,10.7929497]
[1744391036958,6.38133,1567.1,1566.8,6.38227]
[1744391037157,12.45133,1567.1,1566.8,6.38227]
[1744391037366,12.45133,1567.1,1566.8,8.77738797]
[1744391037552,18.83276,1567.1,1566.8,6.38227]
[1744391037752,18.83276,1567.1,1566.5,6.38335]
[1744391037753,7.20348,1567.0,1566.6,6.3831]
[1744391037983,19.65529,1567.0,1566.7,6.38284]
[1744391038190,19.65529,1567.0,1566.6,12.76622]
[1744391038492,6.8916,1567.0,1566.8,6.38238]
[1744391038695,6.8916,1567.0,1566.7,12.76553]
[1744391038896,13.27334,1567.0,1566.7,7.659263]
[1744391039069,19.65536,1567.0,1566.6,12.76624]
[1744391039470,13.27334,1567.0,1566.6,12.76624]
[1744391039685,6.8916,1567.0,1566.7,9.9935997]
[1744391039991,6.8916,1567.0,1566.7,9.9934597]
[1744391039992,13.27326,1567.0,1566.7,9.9934597]
[1744391041498,13.27326,1567.0,1566.7,16.3761797]
[1744391041794,13.27326,1567.0,1566.7,18.01379767]
[1744391041969,13.27326,1567.0,1566.7,18.01380767]
[1744391042487,19.65504,1567.0,1566.7,11.63107767]
[1744391042692,12.76435,1566.9,1566.5,10.7906097]
[1744391042893,13.27331,1567.0,1566.6,6.38324]
[1744391043060,6.38214,1566.9,1566.6,6.38324]
[1744391043392,6.38214,1566.9,1566.6,12.76638]
[1744391043589,13.27326,1567.0,1566.7,6.38278]
[1744391043766,6.8916,1567.0,1566.5,0.7706]
[1744391043976,6.3827,1566.8,1566.4,6.38386]
[1744391044169,19.61153,1566.9,1566.5,12.76708]
[1744391044399,6.8472,1566.9,1566.7,12.76539]
[1744391044586,6.8472,1566.9,1566.7,6.38267]
[1744391044963,6.8472,1566.9,1566.5,9.9942397]
[1744391045169,6.38249,1566.8,1566.5,6.38346]
[1744391045611,6.38249,1566.8,1566.3,6.765]
[1744391045612,0.8123,1566.7,1566.3,6.765]
[1744391045897,6.38347,1566.6,1566.2,12.7695]
[1744391046105,6.07,1566.6,1566.5,6.38365]
[1744391046277,6.07,1566.6,1566.4,6.38406]
[1744391046797,6.07,1566.6,1566.5,3.6107797]
[1744391047009,6.07,1566.6,1566.5,9.9944297]
[1744391047305,6.07,1566.6,1566.5,10.7472297]
[1744391047681,6.07,1566.6,1566.5,11.10057616]
[1744391048776,6.07,1566.6,1566.5,10.34777616]
[1744391049106,6.07,1566.6,1566.5,0.35334646]
[1744391049717,6.07,1566.6,1566.5,6.73699646]
[1744391051222,6.07,1566.6,1566.5,0.35334646]
[1744391051934,6.07,1566.6,1566.4,12.76801]
[1744391052226,6.07,1566.6,1566.5,6.38365]
[1744391053186,6.07,1566.6,1566.5,7.16995]
[1744391053393,6.07,1566.6,1566.5,8.42222527]
[1744391053923,6.07,1566.6,1566.5,8.35839872]
[1744391054098,6.07,1567.1,1567.0,6.38162]
[1744391054288,6.07,1567.2,1567.0,12.76324]
[1744391054484,6.07,1567.2,1567.0,6.38162]
[1744391054707,6.07,1567.2,1567.0,12.76324]
[1744391055101,6.07,1567.2,1567.1,6.38121]
[1744391055535,12.45082,1567.2,1566.9,9.9926997]
[1744391055743,0.7748,1567.1,1567.0,6.38162]
[1744391056232,0.7748,1567.1,1566.9,16.3745797]
[1744391056404,0.7748,1567.1,1566.9,12.7638]
[1744391056821,0.7748,1567.1,1566.9,6.3819]
[1744391057091,0.7748,1567.1,1566.8,9.9931397]
[1744391057092,15.498245,1567.1,1566.8,6.38236]
[1744391057293,9.116785,1567.1,1566.8,6.38236]
[1744391057514,6.38175,1567.0,1566.7,6.38272]
[1744391057705,6.8673,1566.9,1566.7,6.38272]
[1744391058322,13.24934,1566.9,1566.6,16.3771397]
[1744391058530,13.24934,1566.9,1566.6,16.3770197]
[1744391059032,6.07,1566.8,1566.6,9.9938997]
[1744391059232,6.07,1566.8,1566.6,16.3770297]
[1744391060542,6.07,1566.8,1566.7,6.38284]
[1744391060829,6.07,1566.8,1566.7,7.54641993]
[1744391061224,6.07,1566.8,1566.7,6.73631993]
[1744391063538,6.07,1567.0,1566.7,0.35347993]
[1744391063695,6.07,1567.0,1566.9,6.38202]
[1744391064204,6.07,1567.0,1566.9,6.73549993]
[1744391065136,6.07,1567.0,1566.9,6.38202]
[1744391066008,6.07,1567.0,1566.8,12.76467]
[1744391066197,6.07,1567.0,1566.9,6.38202]
[1744391066740,6.07,1567.0,1566.9,6.7360387]
[1744391066896,6.07,1567.0,1566.9,0.3540187]
[1744391067420,14.41666,1567.0,1566.9,0.3540187]
[1744391067623,14.41666,1567.0,1566.8,6.38243]
[1744391067828,6.07,1567.0,1566.8,12.76486]
[1744391068536,6.07,1567.0,1566.8,6.38243]
[1744391068716,12.45165,1567.0,1566.7,12.7654]
[1744391069136,12.45165,1567.0,1566.7,6.3827]
[1744391069311,0.7651,1566.9,1566.7,6.3827]
[1744391069513,6.07,1566.8,1566.7,6.3827]
[1744391070311,6.07,1566.8,1566.7,6.73653423]
[1744391075473,6.07,1567.0,1566.8,6.38242]
[1744391075687,18.83346,1567.0,1566.7,6.73653423]
[1744391075880,0.7671,1566.9,1566.7,6.73653423]
[1744391076044,0.7671,1566.9,1566.7,6.3827]
[1744391077081,0.7671,1566.9,1566.7,6.38265]
[1744391078140,0.7671,1566.9,1566.7,12.76538]
[1744391078341,6.07,1567.0,1566.9,6.38202]
[1744391078655,6.07,1567.0,1566.9,6.73616614]
[1744391079884,6.07,1567.0,1566.9,8.12564175]
[1744391080040,6.07,1567.0,1566.9,8.18945774]
[1744391080244,6.07,1567.0,1566.9,8.12564175]
[1744391081249,6.07,1567.2,1567.1,6.38121]
[1744391082144,6.07,1567.2,1567.1,6.73535614]
[1744391082547,14.41339172,1567.2,1567.1,0.35414614]
[1744391082758,17.41339172,1567.2,1567.1,0.35414614]
[1744391083163,6.38146,1567.1,1566.8,12.76464]
[1744391083372,6.38179,1567.0,1566.7,6.38283]
[1744391083591,6.07,1566.9,1566.7,6.38283]
[1744391083976,6.07,1566.9,1566.7,12.76554]
[1744391084357,6.07,1566.9,1566.8,0.35448515]
[1744391085393,6.07,1566.9,1566.8,6.73691515]
[1744391085597,6.07,1566.9,1566.8,0.35448515]
[1744391086889,0.8145,1566.8,1566.6,12.76628]
[1744391087101,6.07,1566.7,1566.4,6.38383]
[1744391087289,12.45297,1566.7,1566.4,12.76776]
[1744391087599,12.45297,1566.7,1566.5,0.35463641]
[1744391088002,6.07,1566.7,1566.5,6.73816641]
[1744391088178,6.07,1566.7,1566.6,0.35463641]
[1744391089402,6.00652126,1566.7,1566.6,0.35463641]
[1744391091386,6.00652126,1566.7,1566.6,6.73788641]
[1744391091581,6.00652126,1566.7,1566.6,0.35463641]
[1744391091989,6.00652126,1566.7,1566.6,6.73788641]
[1744391095873,6.00652126,1566.7,1566.6,0.35463641]
[1744391096606,6.76762126,1566.7,1566.6,0.35463641]
[1744391096902,15.10373239,1566.7,1566.6,0.35463641]
[1744391097107,15.65373239,1566.7,1566.6,0.35463641]
[1744391097314,18.65373239,1566.7,1566.6,0.35463641]
[1744391097602,18.65373239,1566.7,1565.9,12.70224047]
[1744391097603,6.38569,1566.0,1565.9,5.52533047]
[1744391097778,12.84447485,1566.0,1565.9,5.52533047]
[1744391097985,14.76747034,1566.0,1565.9,5.52533047]
[1744391098397,18.31747034,1566.0,1565.9,5.52533047]
[1744391098873,18.80313968,1566.0,1565.9,5.52533047]
[1744391100103,6.38708,1565.7,1565.5,5.52533047]
[1744391100308,6.29059285,1565.6,1565.5,5.52533047]
[1744391100509,5.65188485,1565.6,1565.5,5.52533047]
[1744391101100,12.03920485,1565.6,1565.5,5.52533047]
[1744391101680,5.65188485,1565.6,1565.5,5.52533047]
[1744391102214,5.65188485,1565.6,1565.5,11.91306047]
[1744391104110,5.65188485,1565.6,1565.5,6.38773]
[1744391104418,5.65188485,1565.6,1564.8,50.79964121]
[1744391104419,12.60455333,1565.6,1565.2,7.19604]
[1744391104617,12.60455333,1565.6,1565.1,6.38929]
[1744391104618,12.04001485,1565.5,1565.1,6.38929]
[1744391104817,0.7765,1565.4,1565.1,6.38929]
[1744391105493,5.65188485,1565.3,1564.9,6.39014]
[1744391105819,6.38939,1565.1,1564.8,0.7879]
[1744391106036,6.38939,1565.1,1564.7,6.39091]
[1744391106037,12.04169485,1565.0,1564.7,6.39091]
[1744391106177,18.43176485,1565.0,1564.6,7.17916]
[1744391106514,18.43176485,1565.0,1564.7,6.39075]
[1744391106515,5.65188485,1565.0,1564.7,6.39075]
[1744391106822,5.65188485,1565.0,1564.6,7.17892]
[1744391106986,13.36572334,1565.0,1564.6,7.17892]
[1744391107189,6.39032,1564.9,1564.6,6.39102]
[1744391107586,6.97579334,1565.0,1564.7,6.39099]
[1744391107833,6.97579334,1565.0,1564.8,6.39057]
[1744391107995,6.97579334,1565.0,1564.9,6.39018]
[1744391107996,5.65188485,1565.0,1564.9,6.39018]
[1744391109588,12.83618485,1565.0,1564.7,6.39082]
[1744391110224,6.44628485,1565.0,1564.7,6.3908]
[1744391110625,5.65188485,1564.9,1564.7,6.3908]
[1744391110922,5.65188485,1564.9,1564.8,6.39059]
[1744391111223,5.65188485,1564.9,1564.8,8.31420082]
[1744391112222,5.65188485,1564.9,1564.8,9.20350084]
[1744391112385,5.65188485,1564.9,1564.8,9.13960082]
[1744391112894,5.65188485,1565.3,1565.0,6.38976]
[1744391113121,5.65188485,1565.3,1565.2,6.38895]
[1744391114420,5.65188485,1565.5,1565.4,7.20794]
[1744391114925,5.65188485,1565.6,1565.4,7.20776]
[1744391115137,12.03924485,1565.6,1565.3,6.38839]
[1744391115449,5.65188485,1565.6,1565.5,0.7571]
[1744391115635,5.65188485,1565.6,1565.3,12.77693]
[1744391115817,5.65188485,1565.6,1565.3,14.130333]
[1744391116147,5.65188485,1565.6,1565.5,6.38773]
[1744391116450,5.65188485,1565.6,1565.4,6.38798]
[1744391116657,12.03936485,1565.6,1565.3,6.38849]
[1744391116816,18.42691485,1565.6,1565.3,6.38849]
[1744391117018,7.16898,1565.5,1565.2,6.38891]
[1744391117357,0.7812,1565.5,1565.2,6.38882]
[1744391117521,7.16893,1565.5,1565.2,12.77762]
[1744391118238,12.41688485,1565.6,1565.3,7.19477]
[1744391118470,12.41688485,1565.6,1565.3,13.58324]
[1744391119764,0.7778,1565.5,1565.3,6.38852]
[1744391121287,0.7778,1565.5,1565.2,6.3889]
[1744391121288,7.16558,1565.5,1565.2,6.3889]
[1744391121479,7.16558,1565.5,1565.1,6.3893]
[1744391121480,0.7778,1565.5,1565.3,6.38846]
[1744391121792,12.41688485,1565.6,1565.4,6.38799]
[1744391122295,0.812,1565.4,1564.9,6.39006]
[1744391122459,3.812,1565.3,1564.8,6.39041]
[1744391122658,0.779,1565.0,1564.8,6.39041]
[1744391122857,6.38965,1565.1,1564.8,12.78087]
[1744391123059,6.38965,1565.1,1564.8,6.39041]
[1744391123282,6.38965,1565.1,1564.8,12.78085]
[1744391123481,5.65188485,1565.0,1564.7,6.39089]
[1744391123787,12.04181485,1565.0,1564.7,12.78178]
[1744391123966,12.04181485,1565.0,1564.7,6.39089]
[1744391124159,18.43175485,1565.0,1564.7,6.39087]
[1744391124360,18.43178485,1565.0,1564.7,6.39087]
[1744391124555,12.04207485,1564.9,1564.6,7.14249]
[1744391124761,19.26501485,1564.9,1564.6,6.39139]
[1744391124969,12.87457485,1564.9,1564.6,12.78266]
[1744391125167,12.87457485,1564.9,1564.6,6.39127]
[1744391125354,19.26502485,1564.9,1564.6,6.39127]
[1744391125554,14.98539518,1564.9,1564.6,12.78255]
[1744391125788,8.59520518,1564.9,1564.6,12.78255]
[1744391125991,14.98539518,1564.9,1564.6,6.39127]
[1744391126997,21.37581518,1564.9,1564.6,6.39127]
[1744391127198,2.13758152,1564.8,1564.5,12.78348]
[1744391127359,2.13758152,1564.8,1564.6,6.39138]
[1744391127680,12.87457485,1564.9,1564.6,6.39138]
[1744391127681,19.26504485,1564.9,1564.6,6.39138]
[1744391127882,19.26491485,1564.9,1564.6,6.39138]
[1744391128076,5.65188485,1564.8,1564.6,6.39138]
[1744391128283,5.65188485,1564.8,1564.5,6.39169]
[1744391128284,12.04252485,1564.8,1564.5,6.39169]
[1744391128500,18.43335485,1564.8,1564.5,6.39169]
[1744391128654,1.84333549,1564.7,1564.5,6.39169]
[1744391128861,8.23434549,1564.7,1564.4,13.54375]
[1744391129362,5.65188485,1564.6,1564.4,7.1516]
[1744391129562,5.65188485,1564.6,1564.4,13.54371]
[1744391130505,5.65188485,1564.6,1564.5,6.39181]
[1744391131113,5.65188485,1564.6,1564.4,13.54364]
[1744391131291,5.65188485,1564.6,1564.5,6.39181]